[Event "7th Sharjah Masters 2024"]
[Site "Sharjah"]
[Date "2024.05.21"]
[Round "8.35"]
[White "Assaubayeva, Bibisara"]
[Black "Vakhidov, Jakhongir"]
[Result "1-0"]
[ECO "A58"]
[WhiteElo "2481"]
[BlackElo "2599"]
[Annotator "RC"]
[PlyCount "53"]
[EventDate "2024.05.13"]
[EventType "swiss"]
[EventCountry "UAE"]
[SourceTitle "playchess.com"]
[Source "ChessBase"]
[SourceQuality "1"]
[TimeControl "5400+30"]

1. d4 {[%emt 1:31:00]} Nf6 {[%emt 0:11:55]} 2. c4 {[%emt 0:00:00]} c5 {[%emt 0:02:17]} 3. d5 {[%emt 0:00:00]} b5 {[%emt 0:02:49]} 4. cxb5 {[%emt 0:00:00]} a6 {[%emt 0:00:09]} 5. bxa6 {[%emt 0:00:00]} e6 {[%emt 0:00:12]} 6. Nc3 {[%emt 0:00:00]} exd5 {[%emt 0:00:10]} 7. Nxd5 {[%emt 0:00:00]} Be7 {[%emt 0:00:14]} 8. e3 {[%emt 0:00:00]} Nxa6 {[%emt 0:03:05]} 9. Nxe7 {[%emt 0:00:00]} Qxe7 {[%emt 0:04:45]} 10. Nf3 {[%emt 0:00:00]} O-O {[%emt 0:00:24]} 11. Be2 {[%emt 0:00:00]} d5 {[%emt 0:00:30]} 12. O-O {[%emt 0:00:00]} Nb4 {[%emt 0:02:19]} 13. Bd2 {[%emt 0:00:00]} Nxa2 {[%emt 0:06:39]} 14. Qb1 {[%emt 0:00:00]} Qa7 {[%emt 0:00:07]} 15. Bd1 {[%emt 0:00:00]} c4 {[%emt 0:01:16]} 16. Bc2 {[%emt 0:00:00]} Bd7 {[%emt 0:00:12]} 17. Ne5 {[%emt 0:00:00]} Bb5 {[%emt 0:00:11]} 18. Bc3 {[%emt 0:00:00]} Rfb8 {[%emt 0:03:52]} 19. Qd1 {[%emt 0:00:00]} Qb7 {[%emt 0:07:02]} 20. Ng4 {[%emt 0:00:00]} Ne8 {[%emt 0:02:05]} 21. Rxa2 {[%emt 0:00:00]} Rxa2 {[%emt 0:05:29]} 22. Nh6+ {[%emt 0:00:00]} Kh8 {[%emt 0:00:41]} 23. Qh5 {[%emt 0:00:00]} f5 {[%emt 0:04:54]} 24. Bxf5 {[%emt 0:02:40]} Nf6 {[%emt 0:08:20]} 25. Bxf6 {[%emt 0:02:19]} gxf6 {[%emt 0:02:35]} 26. Nf7+ {[%emt 0:00:12]} Kg7 {[%emt 0:00:36]} 27. Nd6 {[%emt 0:07:49]} 1-0

[Event "7th Sharjah Masters 2024"]
[Site "Sharjah"]
[Date "2024.05.21"]
[Round "8.36"]
[White "Raja Rithvik R"]
[Black "Aditya Mittal"]
[Result "1-0"]
[ECO "D35"]
[WhiteElo "2524"]
[BlackElo "2608"]
[Annotator "RC"]
[PlyCount "195"]
[EventDate "2024.05.13"]
[EventType "swiss"]
[EventCountry "UAE"]
[SourceTitle "playchess.com"]
[Source "ChessBase"]
[SourceQuality "1"]
[TimeControl "5400+30"]

1. d4 {[%emt 0:01:48]} Nf6 {[%emt 0:00:01]} 2. c4 {[%emt 0:00:03]} e6 {[%emt 0:00:02]} 3. Nf3 {[%emt 0:00:04]} d5 {[%emt 0:00:02]} 4. Nc3 {[%emt 0:00:04]} Nbd7 {[%emt 0:00:02]} 5. Bf4 {[%emt 0:00:49]} Bb4 {[%emt 0:00:01]} 6. cxd5 {[%emt 0:00:41]} exd5 {[%emt 0:00:02]} 7. e3 {[%emt 0:03:17]} Ne4 {[%emt 0:00:35]} 8. Qc2 {[%emt 0:02:21]} g5 {[%emt 0:00:02]} 9. Be5 {[%emt 0:00:06]} Rg8 {[%emt 0:00:01]} 10. Bd3 {[%emt 0:01:12]} Bxc3+ {[%emt 0:01:33]} 11. bxc3 {[%emt 0:01:26]} g4 {[%emt 0:00:02]} 12. Bxe4 {[%emt 0:00:28]} dxe4 {[%emt 0:00:01]} 13. Qxe4 {[%emt 0:00:15]} Qe7 {[%emt 0:00:02]} 14. Nd2 {[%emt 0:05:11]} Nxe5 {[%emt 0:01:39]} 15. dxe5 {[%emt 0:00:48]} Rg6 {[%emt 0:15:21]} 16. O-O {[%emt 0:04:32]} Bd7 {[%emt 0:02:29]} 17. Qxb7 {[%emt 0:05:12]} Bc6 {[%emt 0:00:14]} 18. Qb4 {[%emt 0:00:07]} Qxe5 {[%emt 0:00:40]} 19. Qd4 {[%emt 0:05:58]} Qg5 {[%emt 0:12:52]} 20. Ne4 {[%emt 0:14:30]} Qd5 {[%emt 0:02:15]} 21. Qxd5 {[%emt 0:03:40]} Bxd5 {[%emt 0:00:04]} 22. Ng3 {[%emt 0:05:01]} Ra6 {[%emt 0:05:50]} 23. a4 {[%emt 0:04:56]} Rb8 {[%emt 0:01:14]} 24. Rfd1 {[%emt 0:02:23]} Be6 {[%emt 0:02:20]} 25. Rd4 {[%emt 0:06:04]} c5 {[%emt 0:14:13]} 26. Rf4 {[%emt 0:01:02]} Rab6 {[%emt 0:15:40]} 27. Kf1 {[%emt 0:07:22]} Rb2 {[%emt 0:03:55]} 28. Ke1 {[%emt 0:00:38]} Rc2 {[%emt 0:11:28]} 29. Ne4 {[%emt 0:01:30]} c4 {[%emt 0:03:42]} 30. Nd6+ {[%emt 0:03:14]} Ke7 {[%emt 0:00:14]} 31. Nb5 {[%emt 0:00:19]} Rb7 {[%emt 0:02:41]} 32. Kd1 {[%emt 0:06:47]} Rb2 {[%emt 0:00:01]} 33. Nd4 {[%emt 0:00:37]} h5 {[%emt 0:00:56]} 34. Kc1 {[%emt 0:01:06]} a6 {[%emt 0:02:35]} 35. a5 {[%emt 0:03:48]} h4 {[%emt 0:01:30]} 36. Nc6+ {[%emt 0:01:47]} Kd6 {[%emt 0:00:34]} 37. Nb4 {[%emt 0:00:17]} Rb3 {[%emt 0:01:11]} 38. Kc2 {[%emt 0:00:29]} Ke5 {[%emt 0:00:09]} 39. Rd4 {[%emt 0:05:37]} Bf5+ {[%emt 0:01:29]} 40. Kd2 {[%emt 0:00:01]} Rb2+ {[%emt 0:00:41]} 41. Ke1 {[%emt 0:00:01]} g3 {[%emt 0:00:25]} 42. hxg3 {[%emt 0:02:04]} hxg3 {[%emt 0:00:02]} 43. fxg3 {[%emt 0:03:33]} Rxg2 {[%emt 0:00:01]} 44. Rad1 {[%emt 0:00:41]} Be4 {[%emt 0:01:02]} 45. Rd7 {[%emt 0:00:35]} Rxg3 {[%emt 0:01:33]} 46. Rxb7 {[%emt 0:00:08]} Bxb7 {[%emt 0:00:04]} 47. Rd7 {[%emt 0:00:06]} Bc8 {[%emt 0:01:17]} 48. Rxf7 {[%emt 0:00:39]} Rxe3+ {[%emt 0:00:07]} 49. Kd2 {[%emt 0:00:05]} Rh3 {[%emt 0:00:01]} 50. Rc7 {[%emt 0:00:14]} Rh2+ {[%emt 0:00:58]} 51. Kc1 {[%emt 0:00:06]} Be6 {[%emt 0:00:26]} 52. Rc5+ {[%emt 0:00:44]} Ke4 {[%emt 0:01:20]} 53. Rc6 {[%emt 0:00:04]} Bf5 {[%emt 0:00:29]} 54. Rxa6 {[%emt 0:00:59]} Rh1+ {[%emt 0:00:20]} 55. Kb2 {[%emt 0:00:01]} Rh2+ {[%emt 0:00:28]} 56. Ka3 {[%emt 0:00:13]} Rh3 {[%emt 0:00:08]} 57. Na2 {[%emt 0:00:34]} Kd5 {[%emt 0:00:07]} 58. Rb6 {[%emt 0:01:08]} Kc5 {[%emt 0:00:15]} 59. Rb8 {[%emt 0:00:11]} Be4 {[%emt 0:00:50]} 60. a6 {[%emt 0:00:36]} Rh6 {[%emt 0:00:13]} 61. Nb4 {[%emt 0:00:21]} Rh3 {[%emt 0:01:03]} 62. Kb2 {[%emt 0:00:45]} Rh2+ {[%emt 0:00:04]} 63. Kc1 {[%emt 0:00:04]} Rh1+ {[%emt 0:01:18]} 64. Kd2 {[%emt 0:00:02]} Ra1 {[%emt 0:00:06]} 65. Ke3 {[%emt 0:00:07]} Re1+ {[%emt 0:00:36]} 66. Kd2 {[%emt 0:00:59]} Ra1 {[%emt 0:00:01]} 67. Rc8+ {[%emt 0:00:14]} Kb5 {[%emt 0:00:26]} 68. Ke3 {[%emt 0:00:02]} Bh1 {[%emt 0:00:42]} 69. Rb8+ {[%emt 0:01:06]} Kc5 {[%emt 0:00:01]} 70. Rh8 {[%emt 0:00:06]} Bg2 {[%emt 0:01:06]} 71. Rh5+ {[%emt 0:00:54]} Kb6 {[%emt 0:00:01]} 72. Kd4 {[%emt 0:00:05]} Rd1+ {[%emt 0:01:32]} 73. Kxc4 {[%emt 0:01:23]} Bf1+ {[%emt 0:00:01]} 74. Kb3 {[%emt 0:00:01]} Rd6 {[%emt 0:01:02]} 75. c4 {[%emt 0:00:14]} Rg6 {[%emt 0:00:18]} 76. Rb5+ {[%emt 0:01:06]} Ka7 {[%emt 0:00:27]} 77. Rb7+ {[%emt 0:00:33]} Ka8 {[%emt 0:00:01]} 78. Rc7 {[%emt 0:00:10]} Kb8 {[%emt 0:00:59]} 79. Rc5 {[%emt 0:00:44]} Rg4 {[%emt 0:00:39]} 80. Nc6+ {[%emt 0:02:17]} Ka8 {[%emt 0:00:01]} 81. Ne5 {[%emt 0:00:11]} Re4 {[%emt 0:01:11]} 82. Kb4 {[%emt 0:00:46]} Re1 {[%emt 0:00:23]} 83. Ka5 {[%emt 0:00:37]} Ra1+ {[%emt 0:00:08]} 84. Kb6 {[%emt 0:00:04]} Rb1+ {[%emt 0:00:02]} 85. Rb5 {[%emt 0:00:21]} Ra1 {[%emt 0:00:15]} 86. Kc7 {[%emt 0:01:23]} Bg2 {[%emt 0:00:53]} 87. Nd7 {[%emt 0:00:37]} Rc1 {[%emt 0:01:29]} 88. Rb4 {[%emt 0:00:28]} Ka7 {[%emt 0:01:16]} 89. Nb6 {[%emt 0:01:08]} Bh3 {[%emt 0:00:00]} 90. Na4 {[%emt 0:00:00]} Bg2 {[%emt 0:00:09]} 91. Nc5 {[%emt 0:00:03]} Bf1 {[%emt 0:00:44]} 92. Rb7+ {[%emt 0:00:31]} Ka8 {[%emt 0:00:00]} 93. Kb6 {[%emt 0:00:43]} Bxc4 {[%emt 0:01:00]} 94. Nd7 {[%emt 0:00:33]} Rb1+ {[%emt 0:00:28]} 95. Kc7 {[%emt 0:00:01]} Bd3 {[%emt 0:00:26]} 96. Nb6+ {[%emt 0:00:04]} Rxb6 {[%emt 0:00:04]} 97. Kxb6 {[%emt 0:00:03]} Bxa6 {[%emt 0:00:43]} 98. Ra7+ {[%emt 0:00:03]} 1-0

[Event "7th Sharjah Masters 2024"]
[Site "Sharjah"]
[Date "2024.05.21"]
[Round "8.37"]
[White "Seemann, Jakub"]
[Black "Gupta, Abhijeet"]
[Result "0-1"]
[ECO "B90"]
[WhiteElo "2475"]
[BlackElo "2604"]
[Annotator "RC"]
[PlyCount "76"]
[EventDate "2024.05.13"]
[EventType "swiss"]
[EventCountry "UAE"]
[SourceTitle "playchess.com"]
[Source "ChessBase"]
[SourceQuality "1"]
[TimeControl "5400+30"]

1. e4 {[%emt 0:00:04]} c5 {[%emt 0:00:08]} 2. Nf3 {[%emt 0:00:05]} d6 {[%emt 0:00:03]} 3. d4 {[%emt 0:00:06]} cxd4 {[%emt 0:00:03]} 4. Nxd4 {[%emt 0:00:05]} Nf6 {[%emt 0:00:04]} 5. Nc3 {[%emt 0:00:03]} a6 {[%emt 0:00:10]} 6. h3 {[%emt 0:00:16]} e5 {[%emt 0:00:29]} 7. Nde2 {[%emt 0:00:06]} h5 {[%emt 0:00:26]} 8. Bg5 {[%emt 0:00:07]} Be6 {[%emt 0:00:11]} 9. Bxf6 {[%emt 0:00:08]} Qxf6 {[%emt 0:00:05]} 10. Nd5 {[%emt 0:00:04]} Qd8 {[%emt 0:00:06]} 11. Qd3 {[%emt 0:00:24]} Nd7 {[%emt 0:00:37]} 12. Nec3 {[%emt 0:00:10]} Rc8 {[%emt 0:00:53]} 13. O-O-O {[%emt 0:01:56]} g6 {[%emt 0:00:35]} 14. h4 {[%emt 0:00:51]} Nf6 {[%emt 0:04:32]} 15. Kb1 {[%emt 0:12:12]} Rc5 {[%emt 0:07:57]} 16. f4 {[%emt 1:21:53]} Nxd5 {[%emt 0:02:45]} 17. Nxd5 {[%emt 0:00:00]} Bg7 {[%emt 0:00:39]} 18. f5 {[%emt 0:00:00]} Rxd5 {[%emt 0:10:44]} 19. exd5 {[%emt 0:00:00]} Bxf5 {[%emt 0:00:04]} 20. Qe3 {[%emt 0:00:00]} O-O {[%emt 0:02:16]} 21. Bd3 {[%emt 0:00:00]} Bd7 {[%emt 0:01:59]} 22. c3 {[%emt 0:00:00]} b5 {[%emt 0:01:53]} 23. Qa7 {[%emt 0:00:00]} Bc8 {[%emt 0:02:55]} 24. Rd2 {[%emt 0:00:00]} f5 {[%emt 0:01:36]} 25. Bc2 {[%emt 0:00:00]} e4 {[%emt 0:01:15]} 26. Rf2 {[%emt 0:00:00]} Qe8 {[%emt 0:04:29]} 27. Qe3 {[%emt 0:00:00]} Kh7 {[%emt 0:04:13]} 28. g4 {[%emt 0:00:00]} hxg4 {[%emt 0:11:37]} 29. h5 {[%emt 0:00:00]} g5 {[%emt 0:00:57]} 30. h6 {[%emt 0:00:00]} Bf6 {[%emt 0:10:30]} 31. Rhf1 {[%emt 0:00:00]} f4 {[%emt 0:01:14]} 32. Bxe4+ {[%emt 0:00:00]} Kh8 {[%emt 0:00:02]} 33. Qd3 {[%emt 0:00:00]} g3 {[%emt 0:00:25]} 34. Rc2 {[%emt 0:00:00]} Bd7 {[%emt 0:03:40]} 35. Bf5 {[%emt 0:00:00]} Be5 {[%emt 0:01:25]} 36. Bxd7 {[%emt 0:00:00]} Qxd7 {[%emt 0:00:03]} 37. Rg2 {[%emt 0:06:29]} Rf6 {[%emt 0:02:35]} 38. c4 {[%emt 0:00:39]} Qh7 {[%emt 0:01:28]} 0-1

[Event "7th Sharjah Masters 2024"]
[Site "Sharjah"]
[Date "2024.05.21"]
[Round "8.38"]
[White "Peralta, Fernando"]
[Black "Krzyzanowski, Marcin"]
[Result "1-0"]
[ECO "E42"]
[WhiteElo "2575"]
[BlackElo "2526"]
[Annotator "TA"]
[PlyCount "59"]
[EventDate "2024.05.13"]
[EventType "swiss"]
[EventCountry "UAE"]
[SourceTitle "playchess.com"]
[Source "ChessBase"]
[SourceQuality "1"]
[TimeControl "5400+30"]

{[%evp 14,59,51,39,38,12,43,27,43,53,104,81,106,107,194,209,246,191,182,186,215,214,216,226,230,145,143,151,137,139,218,135,395,402,523,450,776,756,902,888,2009,1880,29986,29987,29997,29998,29998,29999]} 1. d4 {[%emt 0:00:03]} Nf6 {[%emt 0:00:05]} 2. c4 {[%emt 0:00:06]} e6 {[%emt 0:00:04]} 3. Nc3 {[%emt 0:00:22]} Bb4 {[%emt 0:00:06]} 4. e3 {[%emt 0:00:09]} c5 {[%emt 0:00:06]} 5. Nge2 {[%emt 0:00:23]} b6 {[%emt 0:01:23]} 6. a3 {[%emt 0:00:19]} Ba5 {[%emt 0:00:04]} 7. Rb1 {[%emt 0:00:09]} Na6 {[%emt 0:02:35]} 8. Ng3 {[%emt 0:00:32]} Bb7 {[%emt 0:07:50]} 9. f3 {[%emt 0:00:25] Wards off Ne4} O-O {[%emt 0:03:22]} 10. Be2 {[%emt 0:01:11]} d5 {[%emt 0:02:23] White has an edge.} 11. O-O {[%emt 0:01:09]} Rc8 {[%emt 0:07:37] [#]} (11... Bxc3 $14 12. bxc3 Rc8) 12. Nb5 $1 $16 {[%emt 0:06:16]} Ra8 {[%emt 0:29:04]} 13. Qc2 {[%emt 0:16:45]} h5 {[%emt 0:03:10]} (13... dxc4 $16 14. Qxc4 Qe7) 14. cxd5 $18 {[%emt 0:08:53]} exd5 {[%emt 0:08:31]} 15. Nf5 {[%emt 0:10:18]} Ne8 {[%emt 0:01:29] Inhibits Nbd6.} 16. e4 {[%emt 0:14:29]} g6 {[%emt 0:03:18]} 17. Ne3 {[%emt 0:14:04]} dxe4 {[%emt 0:10:42]} 18. d5 {[%emt 0:00:08]} (18. fxe4 cxd4 19. b4 dxe3 $16) 18... exf3 {[%emt 0:01:49]} 19. Bxf3 {[%emt 0:00:11]} Qd7 {[%emt 0:00:50]} (19... Nac7 $2 20. Nxc7 Nxc7 21. b4 $18 (21. d6 Bxf3 22. dxc7 Qxc7 $18)) 20. Be2 {[%emt 0:00:29][%mdl 1024] White has strong compensation. White is more active.} (20. b4 cxb4 21. Qe2 b3 $11) 20... Ng7 {[%emt 0:03:49]} 21. b3 {[%emt 0:02:30]} (21. b4 cxb4 22. Bc4 bxa3 $11) 21... Rfe8 {[%emt 0:00:59]} (21... Rae8 $16 {might work better.}) 22. Rf3 {[%emt 0:00:45]} Kh7 $2 {[%emt 0:04:42][%mdl 8192] This move loses the game for Black.} (22... Re7 $16) 23. Bb2 {[%emt 0:01:58] [#] Black must now prevent Rbf1.} f5 {[%emt 0:01:20]} 24. Rbf1 {[%emt 0:02:10][%cal Bb1f1,Bf1f5,Bf5g5][%mdl 32]} Rf8 {[%emt 0:03:01]} (24... Rxe3 $142 25. Rxe3 Rd8) 25. Rg3 {[%emt 0:06:13]} Rae8 {[%emt 0:01:24]} 26. Bxg7 {[%emt 0:01:02]} Kxg7 {[%emt 0:00:57]} 27. Rxf5 {[%emt 0:06:12]} ({Not} 27. Nxa7 h4 $18) 27... Rxe3 {[%emt 0:01:48]} 28. Rfg5 {[%emt 0:00:56] White mates.} (28. Rxh5 $2 {too greedy.} Rxg3 29. hxg3 gxh5 $19) ({Less strong is} 28. Rxg6+ Kxg6 29. Rxf8+ Kg7 $18) 28... Re7 {[%emt 0:01:10]} 29. Qxg6+ {[%emt 0:00:50]} Kh8 {[%emt 0:00:03]} 30. Qh6+ {[%emt 0:00:10] Weighted Error Value: White=0.12 (very precise) /Black=0.68.  Loses game:     	---       	Black=1      Mistake:       	---       	Black=4      Inaccurate:     	White=2     	Black=2      OK:         	White=6     	Black=4      Best:        	White=4     	Black=1      Strong:       	White=1     	---} 1-0

[Event "7th Sharjah Masters 2024"]
[Site "Sharjah"]
[Date "2024.05.21"]
[Round "8.39"]
[White "Dudin, Gleb"]
[Black "Nikitenko, Mihail"]
[Result "0-1"]
[ECO "E01"]
[WhiteElo "2554"]
[BlackElo "2529"]
[Annotator "TA"]
[PlyCount "80"]
[EventDate "2024.05.13"]
[EventType "swiss"]
[EventCountry "UAE"]
[SourceTitle "playchess.com"]
[Source "ChessBase"]
[SourceQuality "1"]
[TimeControl "5400+30"]

{[%evp 10,80,32,39,42,8,18,12,16,0,0,0,6,-44,-14,-32,0,-50,-40,-45,-54,-54,-52,-76,-78,-68,-64,-73,-70,-86,-48,-142,-60,-73,-70,-96,-84,-78,-100,-89,-89,-76,-79,-75,-67,-72,-59,-56,-45,-103,-104,-147,-147,-133,-90,-212,-234,-285,-279,-304,-229,-230,-239,-237,-216,-216,-220,-286,-286,-342,-345,-345,-342]} 1. d4 {[%emt 0:00:25]} Nf6 {[%emt 0:00:06]} 2. c4 {[%emt 0:00:18]} e6 {[%emt 0:00:05]} 3. Nf3 {[%emt 0:00:15]} d5 {[%emt 0:00:05]} 4. g3 {[%emt 0:00:09]} Nc6 {[%emt 0:00:06]} 5. Bg2 {[%emt 0:00:30]} Bd6 {[%emt 0:00:04]} 6. O-O {[%emt 0:01:29]} O-O {[%emt 0:00:03]} 7. Bg5 {[%emt 0:01:52]} h6 {[%emt 0:00:10]} 8. Bxf6 {[%emt 0:00:06]} Qxf6 {[%emt 0:00:03] The position is equal.} 9. Nc3 {[%emt 0:01:14]} dxc4 {[%emt 0:00:18]} 10. Rc1 {[%emt 0:04:09]} Qe7 {[%emt 0:03:36]} 11. Ne4 {[%emt 0:10:36]} (11. Nb5 $11) 11... b5 $15 {[%emt 0:06:03]} 12. b3 {[%emt 0:06:50]} Ba3 {[%emt 0:02:05]} 13. Rb1 {[%emt 0:05:03]} ({White should try} 13. Rc3 $1 $11) 13... cxb3 $1 {[%emt 0:03:51]} 14. Rxb3 {[%emt 0:08:56]} Rb8 {[%emt 0:01:47]} 15. Qd3 {[%emt 0:03:15]} Bd6 {[%emt 0:00:25]} 16. Qc3 {[%emt 0:13:07]} Rb6 {[%emt 0:04:00]} 17. Rc1 {[%emt 0:04:59]} Rd8 {[%emt 0:00:16]} 18. Qb2 {[%emt 0:08:29][%cal Oe4d6] Wards off Ba3} Bd7 {[%emt 0:04:36]} 19. Nfd2 {[%emt 0:10:36]} Be8 {[%emt 0:02:22]} 20. Re3 {[%emt 0:04:39]} (20. Nxd6 $15 cxd6 (20... Rxd6 21. e3 $11) 21. d5 exd5 22. Re3) 20... Na5 {[%emt 0:04:52]} (20... Bb4 $17 21. Nf3 Ra6) 21. Nxd6 {[%emt 0:05:25]} Qxd6 {[%emt 0:02:51]} 22. Ra3 {[%emt 0:01:33]} Nc4 {[%emt 0:04:31]} 23. Nxc4 {[%emt 0:00:07]} bxc4 {[%emt 0:00:04]} 24. Qc3 {[%emt 0:00:12] [#]} a6 $1 {[%emt 0:00:08]} 25. Bf3 {[%emt 0:03:43]} Rdb8 {[%emt 0:05:05]} 26. Ra5 {[%emt 0:01:52]} Rb5 {[%emt 0:00:05]} 27. Ra4 {[%emt 0:01:37]} Rb4 {[%emt 0:00:05]} 28. Rxb4 {[%emt 0:01:26]} Rxb4 {[%emt 0:00:05]} 29. Kg2 {[%emt 0:01:36]} ({Better is} 29. d5 $15) 29... Ra4 $17 {[%emt 0:00:31]} 30. Ra1 {[%emt 0:00:30]} Qa3 {[%emt 0:00:49]} 31. Qc2 {[%emt 0:00:30]} Rb4 {[%emt 0:02:05]} 32. Qe4 {[%emt 0:00:31] [#] Now White is beyond hope.} (32. Rc1 $17 {keeps fighting.}) 32... Qb2 $1 $19 {[%emt 0:00:30]} 33. Rf1 {[%emt 0:00:30]} c3 $1 {[%emt 0:05:24][%cal Oc3c2] And now ...c2! would win.} ({And not} 33... Qxa2 34. Qa8 Qa4 35. Ra1 $11) 34. Qa8 {[%emt 0:00:06]} Rb8 {[%emt 0:00:04]} 35. Qa7 {[%emt 0:00:07]} Qb6 {[%emt 0:03:09]} 36. Qxb6 {[%emt 0:00:48]} cxb6 {[%emt 0:00:03]} 37. Rc1 {[%emt 0:00:37]} Rc8 {[%emt 0:00:03]} 38. Kf1 {[%emt 0:00:07]} b5 {[%emt 0:02:00] Black has a decisive advantage.} 39. Ke1 {[%emt 0:01:12]} a5 {[%emt 0:00:16]} 40. Kd1 {[%emt 0:00:33]} b4 {[%emt 0:00:05] Weighted Error Value: White=0.24 (precise) /Black=0.10 (very precise) .  Mistake:       	White=5     	Black=1      Inaccurate:     	White=3     	Black=3      OK:         	White=12    	Black=15     Best:        	---       	Black=2      Strong:       	---       	Black=4} 0-1

[Event "7th Sharjah Masters 2024"]
[Site "Sharjah"]
[Date "2024.05.21"]
[Round "8.40"]
[White "Erdos, Viktor"]
[Black "Suleymenov, Alisher"]
[Result "1/2-1/2"]
[ECO "D35"]
[WhiteElo "2546"]
[BlackElo "2501"]
[Annotator "TA"]
[PlyCount "23"]
[EventDate "2024.05.13"]
[EventType "swiss"]
[EventCountry "UAE"]
[SourceTitle "playchess.com"]
[Source "ChessBase"]
[SourceQuality "1"]
[TimeControl "5400+30"]

{[%evp 15,23,6,8,8,20,23,16,0,6,0]} 1. d4 {[%emt 0:02:16]} d5 {[%emt 0:00:08]} 2. Nf3 {[%emt 0:00:12]} Nf6 {[%emt 0:00:08]} 3. c4 {[%emt 0:00:06]} e6 {[%emt 0:00:04]} 4. cxd5 {[%emt 0:00:29]} exd5 {[%emt 0:00:07]} 5. Nc3 {[%emt 0:00:03]} c6 {[%emt 0:03:53]} 6. Bf4 {[%emt 0:00:05]} Bd6 {[%emt 0:01:58]} 7. Bxd6 {[%emt 0:00:24]} Qxd6 {[%emt 0:00:05]} 8. e3 {[%emt 0:00:40]} Bf5 {[%emt 0:01:44]} 9. Nh4 {[%emt 0:04:04]} Be4 {[%emt 0:05:12]} 10. Qb3 {[%emt 0:02:29]} (10. f3 $5 Bg6 $8 11. e4 $14) 10... Nbd7 {[%emt 0:02:23]} 11. Rc1 {[%emt 0:04:14]} Rb8 {[%emt 0:16:44]} 12. Be2 {[%emt 0:21:49] Not much happened in this game.   Weighted Error Value: White=0.05 (flawless) /Black=0.02 (flawless) .  OK:         	White=1     	Black=2} (12. f3 $5 Bg6 $8 13. g4 $11) 1/2-1/2

[Event "7th Sharjah Masters 2024"]
[Site "Sharjah"]
[Date "2024.05.21"]
[Round "8.41"]
[White "Klimkowski, Jan"]
[Black "Kacharava, Nikolozi"]
[Result "1-0"]
[ECO "C76"]
[WhiteElo "2518"]
[BlackElo "2527"]
[Annotator "TA"]
[PlyCount "61"]
[EventDate "2024.05.13"]
[EventType "swiss"]
[EventCountry "UAE"]
[SourceTitle "playchess.com"]
[Source "ChessBase"]
[SourceQuality "1"]
[TimeControl "5400+30"]

{[%evp 15,61,39,35,31,16,41,41,44,51,36,50,48,35,-22,-18,-23,-18,-29,16,-110,-79,-108,-112,-103,-91,-104,-86,-95,-100,-71,-76,-101,-89,-142,162,136,127,18,236,212,1155,1162,1814,1791,29954,29960,5018,5014]} 1. e4 {[%emt 0:00:03]} e5 {[%emt 0:00:31]} 2. Nf3 {[%emt 0:00:07]} Nc6 {[%emt 0:00:18]} 3. Bb5 {[%emt 0:00:06]} a6 {[%emt 0:00:32]} 4. Ba4 {[%emt 0:00:04]} d6 {[%emt 0:00:47]} 5. O-O {[%emt 0:00:22]} Bd7 {[%emt 0:00:24]} 6. c3 {[%emt 0:00:13]} g6 {[%emt 0:00:37]} 7. d4 {[%emt 0:00:14]} Bg7 {[%emt 0:00:40]} 8. Be3 {[%emt 0:00:26]} Nf6 {[%emt 0:01:35]} 9. Nbd2 {[%emt 0:00:34]} Ng4 {[%emt 0:01:18]} 10. Bg5 {[%emt 0:05:42][%cal Be3g5,Bg5h4,Bh4g3][%mdl 32]} f6 {[%emt 0:00:15]} 11. Bh4 {[%emt 0:00:53] White is slightly better.} h5 {[%emt 0:00:26]} 12. Bg3 {[%emt 0:02:40]} g5 {[%emt 0:02:43]} 13. h4 {[%emt 0:01:35]} Qe7 {[%emt 0:03:28]} 14. b4 {[%emt 0:06:29]} (14. d5 $14 Nd8 15. Bxd7+ Qxd7 16. Re1 (16. hxg5 fxg5 17. Nh2 Nxh2 $11)) 14... Nh6 $1 $11 {[%emt 0:03:26]} 15. dxe5 {[%emt 0:16:05]} dxe5 {[%emt 0:01:53]} 16. Re1 {[%emt 0:00:04]} Nf7 {[%emt 0:14:28]} 17. Nh2 {[%emt 0:03:49]} (17. Bb3 $11) 17... O-O-O $1 $17 {[%emt 0:05:56]} 18. Nhf1 {[%emt 0:05:24][%cal Bh2f1,Bf1e3,Be3d5][%mdl 32]} f5 {[%emt 0:02:59]} 19. exf5 {[%emt 0:03:59]} gxh4 {[%emt 0:00:31]} 20. Bh2 {[%emt 0:00:58]} h3 {[%emt 0:03:14] Strongly threatening ...hxg2.} (20... Bxf5 $6 21. Bxc6 bxc6 22. Qa4 $11) 21. Ne3 {[%emt 0:05:17]} Nd6 {[%emt 0:06:26] Against Ne4} 22. Qf3 {[%emt 0:06:48]} hxg2 {[%emt 0:03:12]} 23. Ne4 {[%emt 0:01:08]} Nxe4 {[%emt 0:15:55]} 24. Qxe4 {[%emt 0:00:13][%cal Oa1d1]} Bh6 $2 {[%emt 0:00:49][%mdl 8192]} (24... h4 $1 $17 25. Bd1 Rdg8) 25. Nd5 $1 $18 {[%emt 0:02:38][%mdl 1024] White has strong compensation.} Qf7 {[%emt 0:07:03] [#]} 26. f6 {[%emt 0:04:53] Chess con chili. White is more active.} ({White has to play} 26. Qc4 $1 $16 Rh7 (26... Qxf5 $2 27. Bxc6 $18) (26... Bxf5 $2 27. Nb6+ cxb6 28. Qxf7 $18) 27. f6 (27. Rxe5 b5 $16)) 26... Bf8 $2 {[%emt 0:02:53]} (26... Rhe8 $1 $11 {and Black stays safe.}) 27. Rad1 $1 {[%emt 0:05:13]} (27. Kxg2 Rg8+ 28. Kh1 Rg4 $19) 27... Rg8 $2 {[%emt 0:09:29] [#]} (27... Qe6 28. f4 (28. Kxg2 Bd6 $14) (28. Qxg2 $2 Rg8 $19) (28. Bxe5 Nxe5 29. Bxd7+ Rxd7 $18) 28... Qg4 29. fxe5 Qxe4 30. Rxe4 Bg4) 28. Nb6+ $1 {[%emt 0:06:07][%mdl 512]} cxb6 {[%emt 0:06:26] [#]} (28... Kb8 29. Bxc6) 29. Bxc6 $1 {[%emt 0:00:11][%cal Ba4c6,Bc6b7,Bb7a8][%mdl 32]} Rg5 {[%emt 0:01:32]} 30. Bxb7+ {[%emt 0:00:41]} Kc7 {[%emt 0:00:14]} 31. Ba8 {[%emt 0:02:28] Weighted Error Value: White=0.17 (very precise) /Black=0.55.  Loses game:     	---       	Black=2      Mistake:       	White=3     	Black=1      Inaccurate:     	White=2     	Black=2      OK:         	White=9     	Black=7      Best:        	White=1     	Black=1      Strong:       	White=2     	Black=2      Brilliant:      	White=1     	---} 1-0